fUSD/lending_fUSD_20250109
["ID","MTS","AMOUNT","RATE_DAILY","PERIOD"]
[348356632,1736463072693,-2081.92,9.842e-05,2]
[348356633,1736463072703,-531.03,9.843e-05,2]
[348356634,1736463072714,-500.0,9.843e-05,2]
[348356635,1736463072725,-500.0,9.843e-05,2]
[348356636,1736463072736,-698.28,9.843e-05,2]
[348356637,1736463072746,-500.0,9.843e-05,2]
[348356638,1736463072755,-500.0,9.843e-05,2]
[348356639,1736463072765,-500.0,9.843e-05,2]
[348356640,1736463072774,-500.0,9.843e-05,2]
[348356641,1736463072785,-500.0,9.843e-05,2]
[348356642,1736463072795,-500.0,9.843e-05,2]
[348356643,1736463072805,-500.0,9.843e-05,2]
[348356644,1736463072814,-500.0,9.843e-05,2]
[348356645,1736463072824,-500.0,9.843e-05,2]
[348356646,1736463072833,-933.66,9.843e-05,2]
[348356647,1736463072843,-500.0,9.843e-05,2]
[348356648,1736463072852,-500.0,9.843e-05,2]
[348356649,1736463072862,-500.0,9.843e-05,2]
[348356650,1736463072871,-500.0,9.843e-05,2]
[348356651,1736463072880,-500.0,9.843e-05,2]
[348356652,1736463072889,-500.0,9.843e-05,2]
[348356653,1736463072898,-500.0,9.843e-05,2]
[348356654,1736463072907,-500.0,9.843e-05,2]
[348356655,1736463072916,-630.48,9.843e-05,2]
[348356656,1736463072925,-500.0,9.843e-05,2]
[348356657,1736463072935,-310.33147022,9.843e-05,2]
[348356658,1736463072948,-465.73852978,9.843e-05,2]
[348356659,1736463073121,-500.0,9.843e-05,2]
[348356660,1736463073130,-584.43,9.843e-05,2]
[348356661,1736463073139,-500.0,9.843e-05,2]
[348356662,1736463073149,-777.55,9.843e-05,2]
[348356663,1736463073158,-500.0,9.843e-05,2]
[348356664,1736463073168,-500.0,9.843e-05,2]
[348356665,1736463073177,-500.0,9.843e-05,2]
[348356666,1736463073186,-500.0,9.843e-05,2]
[348356667,1736463073196,-500.0,9.843e-05,2]
[348356668,1736463073205,-500.0,9.843e-05,2]
[348356669,1736463073214,-514.21,9.843e-05,2]
[348356670,1736463073224,-777.63,9.843e-05,2]
[348356671,1736463073234,-500.0,9.843e-05,2]
[348356672,1736463073243,-869.58,9.843e-05,2]
[348356673,1736463073252,-734.92,9.843e-05,2]
[348356674,1736463073262,-500.0,9.843e-05,2]
[348356675,1736463073272,-500.0,9.843e-05,2]
[348356676,1736463073286,-500.0,9.998e-05,2]
[348356677,1736463073295,-926.71,9.998e-05,2]
[348356678,1736463073305,-706.36,9.998e-05,2]
[348356679,1736463073315,-766.42,9.998e-05,2]
[348356680,1736463073324,-523.32,9.998e-05,2]
[348356681,1736463073333,-500.0,9.998e-05,2]
[348356682,1736463073343,-500.0,9.998e-05,2]
[348356683,1736463073356,-500.0,9.998e-05,2]
[348356684,1736463073367,-500.0,9.998e-05,2]
[348356685,1736463073377,-592.53,9.998e-05,2]
[348356686,1736463073386,-500.0,9.998e-05,2]
[348356687,1736463073397,-838.24,9.998e-05,2]
[348356688,1736463073407,-593.25,9.998e-05,2]
[348356689,1736463073419,-500.0,9.998e-05,2]
[348356690,1736463073429,-500.0,9.998e-05,2]
[348356691,1736463073441,-497.20031333,9.998e-05,2]
[348356692,1736463073450,-500.0,9.998e-05,2]
[348356693,1736463073459,-500.0,9.998e-05,2]
[348356694,1736463073469,-327.09174037,9.998e-05,2]
[348356695,1736463073481,-352.30825963,9.998e-05,2]
[348356696,1736463073492,-500.0,9.998e-05,2]
[348356697,1736463073501,-5.3916682,9.998e-05,2]
[348356699,1736463484921,952.95,8.219e-05,2]
[348356718,1736463957117,2103.0,0.0002,120]
[348356737,1736464176861,1003.45804848,8e-05,2]
[348356741,1736464232220,-587.31,9.014e-05,2]
[348356742,1736464232229,-250.0,9.023e-05,2]
[348356743,1736464232239,-14802.73,9.033e-05,2]
[348356744,1736464232248,-250.0,9.062e-05,2]
[348356745,1736464232257,-800.0,9.09e-05,2]
[348356746,1736464232266,-9817.43,9.124e-05,2]
[348356747,1736464232276,-11251.99169381,9.125e-05,2]
[348356748,1736464232308,-3402.03830619,9.125e-05,2]
[348356749,1736464232318,-883.14374257,9.125e-05,2]
[348356750,1736464232376,-116.85625743,9.125e-05,2]
[348356751,1736464232385,-298.31,9.159e-05,2]
[348356752,1736464232394,-233.0,9.233e-05,2]
[348356753,1736464232403,-1366.4688,9.74e-05,2]
[348356754,1736464232412,-2285.36494257,9.741e-05,2]
[348356755,1736464232423,-320.83155743,9.741e-05,2]
[348356756,1736464232432,-93.93639537,9.839e-05,2]
[348356757,1736464232443,-56.06360463,9.839e-05,2]
[348356758,1736464232452,-314.24792643,9.839e-05,2]
[348356759,1736464232464,-185.75207357,9.839e-05,2]
[348356760,1736464232473,-617.62,9.839e-05,2]
[348356761,1736464232482,-1339.91,9.84e-05,2]
[348356762,1736464232491,-2278.81,9.84e-05,2]
[348356763,1736464232500,-1459.99,9.84e-05,2]
[348356764,1736464232509,-972.62,9.84e-05,2]
[348356765,1736464232518,-1110.589587,9.84e-05,2]
[348356766,1736464232527,-1157.05271,9.84e-05,2]
[348356767,1736464232536,-158.700705,9.84e-05,2]
[348356768,1736464232546,-2833.48,9.84e-05,2]
[348356769,1736464232556,-156.864309,9.84e-05,2]
[348356770,1736464232567,-216.70344222,9.84e-05,2]
[348356771,1736464232588,-290.54130537,9.84e-05,2]
[348356772,1736464232600,-1075.70525241,9.84e-05,2]
[348356773,1736464232613,-624.77,9.84e-05,2]
[348356774,1736464232622,-500.0,9.84e-05,2]
[348356775,1736464232632,-159.18172,9.84e-05,2]
[348356776,1736464232643,-500.0,9.84e-05,2]
[348356777,1736464232654,-500.0,9.84e-05,2]
[348356778,1736464232665,-160.866159,9.84e-05,2]
[348356779,1736464232677,-3780.45,9.84e-05,2]
[348356780,1736464232686,-159.18172,9.84e-05,2]
[348356781,1736464232696,-709.63,9.84e-05,2]
[348356782,1736464232705,-160.866159,9.84e-05,2]
[348356783,1736464232716,-1351.09,9.84e-05,2]
[348356784,1736464232725,-500.0,9.84e-05,2]
[348356785,1736464232736,-652.94,9.84e-05,2]
[348356786,1736464232747,-1032.34,9.84e-05,2]
[348356787,1736464232757,-500.0,9.84e-05,2]
[348356788,1736464232769,-160.866159,9.84e-05,2]
[348356789,1736464232779,-548.37,9.84e-05,2]
[348356790,1736464232788,-500.0,9.84e-05,2]
[348356791,1736464232797,-500.0,9.84e-05,2]
[348356792,1736464232807,-500.0,9.84e-05,2]
[348356793,1736464232818,-500.0,9.84e-05,2]
[348356794,1736464232828,-500.0,9.84e-05,2]
[348356795,1736464232838,-150.803734,9.84e-05,2]
[348356796,1736464232848,-762.07,9.84e-05,2]
[348356797,1736464232858,-500.0,9.84e-05,2]
[348356798,1736464232868,-993.08,9.84e-05,2]
[348356799,1736464232878,-156.995149,9.84e-05,2]
[348356800,1736464232887,-607.1,9.84e-05,2]
[348356801,1736464232896,-346.64605973,9.84e-05,2]
[348356802,1736464232911,-153.35394027,9.84e-05,2]
[348356803,1736464232920,-217.99014621,9.84e-05,2]
[348356804,1736464233032,-282.00985379,9.84e-05,2]
[348356805,1736464233042,-160.866159,9.84e-05,2]
[348356806,1736464233051,-500.0,9.84e-05,2]
[348356807,1736464233060,-500.0,9.84e-05,2]
[348356808,1736464233070,-500.0,9.84e-05,2]
[348356809,1736464233079,-500.0,9.84e-05,2]
[348356810,1736464233089,-737.67,9.84e-05,2]
[348356811,1736464233098,-500.0,9.84e-05,2]
[348356812,1736464233107,-500.0,9.84e-05,2]
[348356813,1736464233117,-500.0,9.84e-05,2]
[348356814,1736464233127,-500.0,9.84e-05,2]
[348356815,1736464233137,-926.14,9.84e-05,2]
[348356816,1736464233146,-420.69127803,9.84e-05,2]
[348356817,1736464233158,-121.12872197,9.84e-05,2]
[348356818,1736464233168,-500.0,9.84e-05,2]
[348356819,1736464233177,-459.66362371,9.84e-05,2]
[348356820,1736464233188,-40.33637629,9.84e-05,2]
[348356821,1736464233197,-500.0,9.84e-05,2]
[348356822,1736464233206,-488.45362371,9.84e-05,2]
[348356823,1736464233244,-111.71637629,9.84e-05,2]
[348356824,1736464233254,-500.0,9.84e-05,2]
[348356825,1736464233264,-767.02,9.84e-05,2]
[348356826,1736464233273,-2079.27,9.84e-05,2]
[348356827,1736464233282,-768.23,9.84e-05,2]
[348356828,1736464233292,-500.0,9.84e-05,2]
[348356829,1736464233301,-886.94,9.84e-05,2]
[348356830,1736464233311,-500.0,9.84e-05,2]
[348356831,1736464233320,-500.0,9.84e-05,2]
[348356832,1736464233331,-537.95,9.84e-05,2]
[348356833,1736464233340,-1299.47,9.84e-05,2]
[348356834,1736464233350,-500.0,9.84e-05,2]
[348356835,1736464233359,-506.79,9.84e-05,2]
[348356836,1736464233368,-755.46,9.84e-05,2]
[348356837,1736464233377,-500.0,9.84e-05,2]
[348356838,1736464233386,-500.0,9.84e-05,2]
[348356839,1736464233396,-503.42,9.84e-05,2]
[348356840,1736464233406,-533.03,9.84e-05,2]
[348356841,1736464233416,-370.57081453,9.84e-05,2]
[348356842,1736464233428,-1407.42918547,9.84e-05,2]
[348356843,1736464233438,-500.0,9.84e-05,2]
[348356844,1736464233447,-500.0,9.84e-05,2]
[348356845,1736464233457,-500.0,9.84e-05,2]
[348356846,1736464233466,-500.0,9.84e-05,2]
[348356847,1736464233475,-654.69,9.84e-05,2]
[348356848,1736464233484,-1299.64,9.84e-05,2]
[348356849,1736464233493,-500.0,9.84e-05,2]
[348356850,1736464233503,-500.0,9.84e-05,2]
[348356851,1736464233512,-669.53,9.84e-05,2]
[348356852,1736464233521,-878.17,9.84e-05,2]
[348356853,1736464233531,-746.31,9.84e-05,2]
[348356854,1736464233541,-2825.53,9.84e-05,2]
[348356855,1736464233550,-500.0,9.84e-05,2]
[348356856,1736464233559,-500.0,9.84e-05,2]
[348356857,1736464233569,-500.0,9.84e-05,2]
[348356858,1736464233579,-500.0,9.84e-05,2]
[348356859,1736464233588,-500.0,9.84e-05,2]
[348356860,1736464233597,-1370.91,9.84e-05,2]
[348356861,1736464233609,-500.0,9.84e-05,2]
[348356862,1736464233619,-500.0,9.84e-05,2]
[348356863,1736464233628,-591.06,9.84e-05,2]
[348356864,1736464233638,-509.67,9.84e-05,2]
[348356865,1736464233647,-500.0,9.84e-05,2]
[348356866,1736464233659,-5530.79,9.84e-05,2]
[348356867,1736464233668,-1016.91,9.84e-05,2]
[348356868,1736464233678,-893.55,9.84e-05,2]
[348356869,1736464233690,-500.0,9.84e-05,2]
[348356870,1736464233699,-1024.58,9.84e-05,2]
[348356871,1736464233709,-3300.0,9.84e-05,2]
[348356872,1736464233719,-500.0,9.84e-05,2]
[348356873,1736464233728,-1161.86,9.84e-05,2]
[348356874,1736464233737,-500.0,9.84e-05,2]
[348356875,1736464233746,-500.0,9.84e-05,2]
[348356876,1736464233757,-3918.44,9.84e-05,2]
[348356877,1736464233766,-568.54,9.84e-05,2]
[348356878,1736464233776,-1679.97,9.84e-05,2]
[348356879,1736464233786,-500.0,9.84e-05,2]
[348356880,1736464233795,-500.0,9.84e-05,2]
[348356881,1736464233806,-1225.86,9.84e-05,2]
[348356882,1736464233815,-1361.85114829,9.84e-05,2]
[348356883,1736464233828,-345.3348,9.84e-05,2]
[348356885,1736464238399,-1009.5,9.84e-05,2]
[348356886,1736464238411,-781.67405171,9.84e-05,2]
[348356887,1736464238420,-500.0,9.84e-05,2]
[348356888,1736464238430,-500.0,9.84e-05,2]
[348356889,1736464238439,-500.0,9.84e-05,2]
[348356890,1736464238448,-9763.1,9.84e-05,2]
[348356891,1736464238458,-637.7,9.84e-05,2]
[348356892,1736464238467,-500.0,9.84e-05,2]
[348356893,1736464238476,-500.0,9.84e-05,2]
[348356894,1736464238486,-500.0,9.84e-05,2]
[348356895,1736464238495,-500.0,9.84e-05,2]
[348356896,1736464238504,-1383.75,9.84e-05,2]
[348356897,1736464238513,-1654.81,9.84e-05,2]
[348356898,1736464238523,-1394.24,9.84e-05,2]
[348356899,1736464238532,-570.03,9.84e-05,2]
[348356900,1736464238543,-1197.12,9.84e-05,2]
[348356901,1736464238551,-500.0,9.84e-05,2]
[348356902,1736464238561,-1383.77,9.84e-05,2]
[348356903,1736464238571,-1806.31,9.84e-05,2]
[348356904,1736464238581,-791.51,9.84e-05,2]
[348356905,1736464238592,-2302.39,9.84e-05,2]
[348356906,1736464238603,-601.46,9.84e-05,2]
[348356907,1736464238616,-3880.27,9.84e-05,2]
[348356908,1736464238626,-1263.19,9.84e-05,2]
[348356909,1736464238636,-500.0,9.84e-05,2]
[348356910,1736464238646,-500.0,9.84e-05,2]
[348356911,1736464238657,-555.45,9.84e-05,2]
[348356912,1736464238667,-2255.87,9.84e-05,2]
[348356913,1736464238677,-4315.7,9.84e-05,2]
[348356914,1736464238689,-1855.94,9.84e-05,2]
[348356915,1736464238699,-2919.4,9.84e-05,2]
[348356916,1736464238709,-1352.34,9.84e-05,2]
[348356917,1736464238719,-510.67,9.84e-05,2]
[348356918,1736464238729,-1015.51,9.84e-05,2]
[348356919,1736464238739,-500.0,9.84e-05,2]
[348356920,1736464238748,-2079.95,9.84e-05,2]
[348356921,1736464238758,-802.81,9.84e-05,2]
[348356922,1736464238767,-979.65,9.84e-05,2]
[348356923,1736464238777,-500.0,9.84e-05,2]
[348356924,1736464238787,-2536.25,9.84e-05,2]
[348356925,1736464238797,-1867.01,9.84e-05,2]
[348356926,1736464238807,-650.79,9.84e-05,2]
[348356927,1736464238817,-607.35,9.84e-05,2]
[348356928,1736464238826,-2025.45,9.84e-05,2]
[348356929,1736464238836,-3793.75,9.84e-05,2]
[348356930,1736464238847,-1584.97,9.84e-05,2]
[348356931,1736464238856,-7385.22,9.84e-05,2]
[348356932,1736464238866,-500.0,9.84e-05,2]
[348356933,1736464238875,-925.08,9.84e-05,2]
[348356934,1736464238884,-500.0,9.84e-05,2]
[348356935,1736464238894,-500.0,9.84e-05,2]
[348356936,1736464238903,-619.92,9.84e-05,2]
[348356937,1736464238913,-1428.05,9.84e-05,2]
[348356938,1736464238922,-500.0,9.84e-05,2]
[348356939,1736464238931,-500.0,9.84e-05,2]
[348356940,1736464238940,-500.0,9.84e-05,2]
[348356941,1736464238949,-500.0,9.84e-05,2]
[348356942,1736464238958,-631.73,9.84e-05,2]
[348356943,1736464238968,-1111.88,9.84e-05,2]
[348356944,1736464238977,-2376.81,9.84e-05,2]
[348356945,1736464238986,-1011.89,9.84e-05,2]
[348356946,1736464238996,-962.16,9.84e-05,2]
[348356947,1736464239006,-1842.8,9.84e-05,2]
[348356948,1736464239015,-809.81,9.84e-05,2]
[348356949,1736464239024,-1412.7,9.84e-05,2]
[348356950,1736464239034,-500.0,9.84e-05,2]
[348356951,1736464239047,-500.0,9.84e-05,2]
[348356952,1736464239056,-1113.45,9.84e-05,2]
[348356953,1736464239066,-500.0,9.841e-05,2]
[348356954,1736464239075,-500.0,9.841e-05,2]
[348356955,1736464239084,-500.0,9.841e-05,2]
[348356956,1736464239093,-500.0,9.841e-05,2]
[348356957,1736464239103,-500.0,9.841e-05,2]
[348356958,1736464239112,-626.83,9.841e-05,2]
[348356959,1736464239121,-500.0,9.841e-05,2]
[348356960,1736464239130,-500.0,9.841e-05,2]
[348356961,1736464239139,-500.0,9.841e-05,2]
[348356962,1736464239148,-500.0,9.841e-05,2]
[348356963,1736464239157,-500.0,9.841e-05,2]
[348356964,1736464239167,-500.0,9.841e-05,2]
[348356965,1736464239176,-489.11,9.841e-05,2]
[348356966,1736464239185,-500.0,9.841e-05,2]
[348356967,1736464239194,-500.0,9.841e-05,2]
[348356968,1736464239204,-500.0,9.841e-05,2]
[348356969,1736464239213,-500.0,9.841e-05,2]
[348356970,1736464239222,-500.0,9.841e-05,2]
[348356971,1736464239232,-500.0,9.841e-05,2]
[348356972,1736464239250,-510.94,9.841e-05,2]
[348356973,1736464239261,-500.0,9.841e-05,2]
[348356974,1736464239271,-500.0,9.841e-05,2]
[348356975,1736464239280,-500.0,9.841e-05,2]
[348356976,1736464239291,-500.0,9.841e-05,2]
[348356977,1736464239300,-500.0,9.841e-05,2]
[348356978,1736464239310,-500.0,9.841e-05,2]
[348356979,1736464239319,-541.38,9.841e-05,2]
[348356980,1736464239329,-500.0,9.841e-05,2]
[348356981,1736464239338,-500.0,9.841e-05,2]
[348356982,1736464239348,-500.0,9.841e-05,2]
[348356983,1736464239357,-500.0,9.841e-05,2]
[348356984,1736464239367,-521.75781591,9.841e-05,2]
[348356985,1736464239376,-500.0,9.841e-05,2]
[348356986,1736464239386,-500.0,9.841e-05,2]
[348356987,1736464239396,-500.0,9.841e-05,2]
[348356988,1736464239405,-500.0,9.841e-05,2]
[348356989,1736464239414,-500.0,9.841e-05,2]
[348356990,1736464239425,-500.0,9.841e-05,2]
[348356991,1736464239434,-500.0,9.841e-05,2]
[348356992,1736464239444,-281.15,9.841e-05,2]
[348356993,1736464239456,-500.0,9.841e-05,2]
[348356994,1736464239467,-500.0,9.841e-05,2]
[348356995,1736464239478,-620.87,9.841e-05,2]
[348356996,1736464239488,-680.81,9.841e-05,2]
[348356997,1736464239498,-500.0,9.841e-05,2]
[348356998,1736464239509,-500.0,9.841e-05,2]
[348356999,1736464239519,-500.0,9.841e-05,2]
[348357000,1736464239528,-500.0,9.841e-05,2]
[348357001,1736464239538,-500.0,9.841e-05,2]
[348357002,1736464239547,-500.0,9.841e-05,2]
[348357003,1736464239557,-500.0,9.841e-05,2]
[348357004,1736464239567,-221.57787795,9.841e-05,2]
[348357005,1736464239577,-500.0,9.841e-05,2]
[348357006,1736464239587,-500.0,9.841e-05,2]
[348357007,1736464239596,-154.6219113,9.841e-05,2]
[348357008,1736464239609,-500.0,9.841e-05,2]
[348357009,1736464239618,-500.0,9.841e-05,2]
[348357010,1736464239628,-500.0,9.841e-05,2]
[348357011,1736464239637,-326.84829565,9.841e-05,2]
[348357012,1736464239647,-500.0,9.841e-05,2]
[348357013,1736464239656,-500.0,9.841e-05,2]
[348357014,1736464239666,-500.0,9.841e-05,2]
[348357015,1736464239676,-500.0,9.841e-05,2]
[348357016,1736464239686,-500.0,9.841e-05,2]
[348357017,1736464239696,-500.0,9.841e-05,2]
[348357018,1736464239705,-500.0,9.841e-05,2]
[348357019,1736464239716,-500.0,9.841e-05,2]
[348357020,1736464239726,-500.0,9.841e-05,2]
[348357021,1736464239735,-500.0,9.841e-05,2]
[348357022,1736464239745,-500.0,9.841e-05,2]
[348357023,1736464239755,-500.0,9.841e-05,2]
[348357024,1736464239765,-500.0,9.841e-05,2]
[348357025,1736464239775,-500.0,9.841e-05,2]
[348357026,1736464239784,-500.0,9.841e-05,2]
[348357027,1736464239797,-500.0,9.841e-05,2]
[348357028,1736464239807,-500.0,9.841e-05,2]
[348357029,1736464239817,-500.0,9.841e-05,2]
[348357030,1736464239826,-189.73375683,9.841e-05,2]
[348357031,1736464239836,-620.36,9.841e-05,2]
[348357032,1736464239847,-243.47234988,9.841e-05,2]
[348357033,1736464239856,-500.0,9.841e-05,2]
[348357034,1736464239866,-500.0,9.841e-05,2]
[348357035,1736464239876,-500.0,9.841e-05,2]
[348357036,1736464239886,-500.0,9.841e-05,2]
[348357037,1736464239895,-500.66757515,9.841e-05,2]
[348357038,1736464239905,-516.53,9.841e-05,2]
[348357039,1736464239915,-500.0,9.841e-05,2]
[348357040,1736464239924,-500.0,9.841e-05,2]
[348357041,1736464239934,-500.0,9.841e-05,2]
[348357042,1736464239944,-500.0,9.841e-05,2]
[348357043,1736464239953,-500.0,9.841e-05,2]
[348357044,1736464239963,-500.0,9.841e-05,2]
[348357045,1736464239972,-500.0,9.841e-05,2]
[348357046,1736464239982,-500.0,9.841e-05,2]
[348357047,1736464239995,-500.0,9.841e-05,2]
[348357048,1736464240005,-500.0,9.841e-05,2]
[348357049,1736464240015,-300.0,9.841e-05,2]
[348357050,1736464240024,-526.38,9.841e-05,2]
[348357051,1736464240034,-500.0,9.841e-05,2]
[348357052,1736464240047,-500.0,9.841e-05,2]
[348357053,1736464240056,-500.0,9.841e-05,2]
[348357054,1736464240065,-500.0,9.841e-05,2]
[348357055,1736464240075,-500.0,9.841e-05,2]
[348357056,1736464240084,-500.0,9.841e-05,2]
[348357057,1736464240093,-500.0,9.841e-05,2]
[348357058,1736464240103,-500.0,9.841e-05,2]
[348357059,1736464240112,-500.0,9.841e-05,2]
[348357060,1736464240121,-500.0,9.841e-05,2]
[348357061,1736464240131,-500.0,9.841e-05,2]
[348357062,1736464240140,-500.0,9.841e-05,2]
[348357063,1736464240149,-500.0,9.841e-05,2]
[348357064,1736464240159,-500.0,9.841e-05,2]
[348357065,1736464240168,-500.0,9.841e-05,2]
[348357066,1736464240178,-500.0,9.841e-05,2]
[348357067,1736464240187,-1147.46,9.841e-05,2]
[348357068,1736464240196,-500.0,9.841e-05,2]
[348357069,1736464240205,-1058.12,9.841e-05,2]
[348357070,1736464240215,-1273.53,9.841e-05,2]
[348357071,1736464240224,-1074.97,9.841e-05,2]
[348357072,1736464240234,-2765.79,9.841e-05,2]
[348357073,1736464240243,-1599.29,9.841e-05,2]
[348357074,1736464240252,-500.0,9.841e-05,2]
[348357075,1736464240262,-924.66,9.841e-05,2]
[348357076,1736464240271,-500.0,9.842e-05,2]
[348357077,1736464240280,-500.0,9.842e-05,2]
[348357078,1736464240290,-500.0,9.842e-05,2]
[348357079,1736464240300,-500.0,9.842e-05,2]
[348357080,1736464240309,-500.0,9.842e-05,2]
[348357081,1736464240319,-799.08,9.842e-05,2]
[348357082,1736464240328,-500.0,9.842e-05,2]
[348357083,1736464240337,-500.0,9.842e-05,2]
[348357084,1736464240347,-500.0,9.842e-05,2]
[348357085,1736464240356,-500.0,9.842e-05,2]
[348357086,1736464240366,-500.0,9.842e-05,2]
[348357087,1736464240375,-500.0,9.842e-05,2]
[348357088,1736464240385,-500.0,9.842e-05,2]
[348357089,1736464240394,-500.0,9.842e-05,2]
[348357090,1736464240404,-1094.21,9.842e-05,2]
[348357091,1736464240414,-500.0,9.842e-05,2]
[348357092,1736464240424,-862.31,9.842e-05,2]
[348357093,1736464240433,-938.93,9.842e-05,2]
[348357094,1736464240442,-500.0,9.842e-05,2]
[348357095,1736464240452,-978.12,9.842e-05,2]
[348357096,1736464240462,-500.0,9.842e-05,2]
[348357097,1736464240471,-634.46,9.842e-05,2]
[348357098,1736464240481,-500.0,9.842e-05,2]
[348357099,1736464240490,-500.0,9.842e-05,2]
[348357100,1736464240499,-500.0,9.842e-05,2]
[348357101,1736464240509,-500.0,9.842e-05,2]
[348357103,1736464240518,-500.0,9.842e-05,2]
[348357105,1736464240527,-500.0,9.842e-05,2]
[348357107,1736464240536,-500.0,9.842e-05,2]
[348357109,1736464240550,-500.0,9.842e-05,2]
[348357111,1736464240559,-500.0,9.842e-05,2]
[348357113,1736464240572,-500.0,9.842e-05,2]
[348357115,1736464240581,-500.0,9.842e-05,2]
[348357117,1736464240591,-500.0,9.842e-05,2]
[348357119,1736464240601,-500.0,9.842e-05,2]
[348357121,1736464240613,-500.0,9.842e-05,2]
[348357123,1736464240623,-500.0,9.842e-05,2]
[348357125,1736464240633,-235.26,9.842e-05,2]
[348357127,1736464240643,-642.63,9.842e-05,2]
[348357129,1736464240652,-318.75,9.842e-05,2]
[348357131,1736464240662,-500.0,9.842e-05,2]
[348357133,1736464240672,-500.0,9.842e-05,2]
[348357135,1736464240682,-500.0,9.842e-05,2]
[348357137,1736464240693,-500.0,9.842e-05,2]
[348357139,1736464240702,-630.14312637,9.842e-05,2]
[348357141,1736464240712,-529.69,9.842e-05,2]
[348357143,1736464240723,-500.0,9.842e-05,2]
[348357145,1736464240733,-1009.39,9.842e-05,2]
[348357147,1736464240742,-500.0,9.842e-05,2]
[348357149,1736464240752,-785.43,9.842e-05,2]
[348357151,1736464240761,-500.0,9.842e-05,2]
[348357153,1736464240771,-500.0,9.842e-05,2]
[348357155,1736464240781,-500.0,9.842e-05,2]
[348357157,1736464240791,-500.0,9.842e-05,2]
[348357160,1736464240805,-500.0,9.842e-05,2]
[348357162,1736464240815,-500.0,9.842e-05,2]
[348357164,1736464240825,-500.0,9.842e-05,2]
[348357190,1736464241120,-500.0,9.842e-05,2]
[348357192,1736464241130,-508.66039595,9.842e-05,2]
[348357194,1736464241139,-500.0,9.842e-05,2]
[348357196,1736464241149,-500.0,9.842e-05,2]
[348357198,1736464241158,-595.77,9.842e-05,2]
[348357200,1736464241167,-500.0,9.842e-05,2]
[348357202,1736464241176,-500.0,9.842e-05,2]
[348357204,1736464241186,-500.0,9.842e-05,2]
[348357206,1736464241195,-709.19,9.842e-05,2]
[348357208,1736464241205,-500.0,9.842e-05,2]
[348357210,1736464241215,-500.0,9.842e-05,2]
[348357212,1736464241225,-500.0,9.842e-05,2]
[348357214,1736464241234,-500.0,9.842e-05,2]
[348357216,1736464241244,-634.84,9.842e-05,2]
[348357218,1736464241253,-500.0,9.842e-05,2]
[348357220,1736464241263,-615.34,9.842e-05,2]
[348357222,1736464241272,-500.0,9.842e-05,2]
[348357224,1736464241281,-500.0,9.842e-05,2]
[348357226,1736464241292,-500.0,9.842e-05,2]
[348357228,1736464241301,-954.84,9.842e-05,2]
[348357230,1736464241310,-500.0,9.842e-05,2]
[348357232,1736464241321,-500.0,9.842e-05,2]
[348357234,1736464241330,-507.76,9.842e-05,2]
[348357236,1736464241340,-500.0,9.842e-05,2]
[348357238,1736464241350,-500.0,9.842e-05,2]
[348357240,1736464241359,-500.0,9.842e-05,2]
[348357242,1736464241368,-500.0,9.842e-05,2]
[348357244,1736464241378,-1019.59,9.842e-05,2]
[348357246,1736464241387,-500.0,9.842e-05,2]
[348357248,1736464241396,-500.0,9.842e-05,2]
[348357250,1736464241405,-500.0,9.842e-05,2]
[348357252,1736464241414,-537.4,9.842e-05,2]
[348357254,1736464241424,-558.36,9.842e-05,2]
[348357256,1736464241434,-500.0,9.842e-05,2]
[348357258,1736464241443,-1233.3,9.842e-05,2]
[348357260,1736464241452,-500.0,9.842e-05,2]
[348357262,1736464241462,-500.0,9.842e-05,2]
[348357264,1736464241471,-500.0,9.842e-05,2]
[348357266,1736464241481,-721.29,9.842e-05,2]
[348357268,1736464241490,-500.0,9.842e-05,2]